fUST/lending_fUST_20240805
["ID","MTS","AMOUNT","RATE_DAILY","PERIOD"]
[334202895,1722837038916,-859.531168,0.00021602,2]
[334202896,1722837038925,-859.531168,0.00021602,2]
[334202897,1722837038934,-151.0,0.00021602,2]
[334202898,1722837038943,-151.0,0.00021609,2]
[334202899,1722837038952,-182.00734,0.00021609,2]
[334202900,1722837038962,-182.00734,0.00021609,2]
[334202901,1722837038971,-151.0,0.00021609,2]
[334202902,1722837038980,-1230.133207,0.00021609,2]
[334202903,1722837038989,-1230.133207,0.00021609,2]
[334202904,1722837038999,-679.058374,0.00021609,2]
[334202905,1722837039013,-679.058374,0.00021609,2]
[334202906,1722837039022,-151.0,0.00021609,2]
[334202907,1722837039032,-154.79103211,0.00021609,2]
[334202908,1722837039041,-154.79103211,0.00021609,2]
[334202909,1722837039050,-151.0,0.00021642,2]
[334202910,1722837039060,-167.031489,0.00021642,2]
[334202911,1722837039069,-200.092375,0.00021642,2]
[334202912,1722837039078,-200.092375,0.00021642,2]
[334202913,1722837039088,-333.477487,0.00021642,2]
[334202914,1722837039097,-333.477487,0.00021642,2]
[334202915,1722837039107,-154.79103211,0.00021642,2]
[334202916,1722837039117,-154.79103211,0.00021642,2]
[334202917,1722837039126,-174.34056682,0.00021642,2]
[334202918,1722837039135,-154.77557542,0.00021805,2]
[334202919,1722837039145,-151.172785,0.00021821,2]
[334202920,1722837039154,-151.0,0.00021821,2]
[334202921,1722837039164,-151.0,0.00021821,2]
[334202922,1722837039244,-999.47999369,0.00021821,2]
[334202923,1722837039253,-23893.7214294,0.00021896,3]
[334202924,1722837039269,-151.0,0.00021906,2]
[334202925,1722837039278,-151.0,0.00021906,2]
[334202926,1722837039287,-151.0,0.00021906,2]
[334202927,1722837039296,-151.0,0.00021906,2]
[334202928,1722837039306,-151.0,0.00021906,2]
[334202929,1722837039315,-261.862286,0.00021906,2]
[334202930,1722837039324,-261.862286,0.00021906,2]
[334202931,1722837039333,-151.0,0.0002199,7]
[334202932,1722837039342,-182.00734,0.0002199,7]
[334202933,1722837039351,-182.00734,0.0002199,7]
[334202934,1722837039360,-151.0,0.0002199,7]
[334202935,1722837039369,-151.0,0.0002199,7]
[334202936,1722837039379,-151.0,0.0002199,7]
[334202937,1722837039389,-448.284641,0.0002199,7]
[334202938,1722837039398,-12553.35,0.00022,14]
[334202939,1722837039407,-1104.48,0.00022,14]
[334202940,1722837039418,-579.68,0.00022,7]
[334202941,1722837039428,-302.63687509,0.00022,2]
[334202942,1722837039437,-328.488265,0.00022,7]
[334202943,1722837039450,-328.488265,0.00022,7]
[334202944,1722837039460,-160.54991199,0.00022219,2]
[334202945,1722837039469,-302.63687509,0.0002222,2]
[334202946,1722837039478,-400.0,0.00022342,2]
[334202947,1722837039487,-151.0,0.000224,7]
[334202948,1722837039496,-151.0,0.000224,7]
[334202949,1722837039508,-244.42,0.000224,31]
[334202950,1722837039517,-244.42,0.000224,31]
[334202951,1722837039526,-244.42,0.000224,31]
[334202952,1722837039535,-244.42,0.000224,31]
[334202953,1722837039545,-244.42,0.000224,31]
[334202954,1722837039555,-244.42,0.000224,31]
[334202955,1722837039564,-244.42,0.000224,31]
[334202956,1722837039573,-244.42,0.000224,31]
[334202957,1722837039582,-244.42,0.000224,31]
[334202958,1722837039592,-244.42,0.000224,31]
[334202959,1722837039601,-244.42,0.000224,31]
[334202960,1722837039610,-244.42,0.000224,31]
[334202961,1722837039620,-244.42,0.000224,31]
[334202963,1722837039629,-244.42,0.000224,31]
[334202965,1722837039639,-244.42,0.000224,31]
[334202966,1722837039648,-244.42,0.000224,31]
[334202967,1722837039657,-244.42,0.000224,31]
[334202968,1722837039667,-244.42,0.000224,31]
[334202969,1722837039676,-244.42,0.000224,31]
[334202970,1722837039686,-244.42,0.000224,31]
[334202971,1722837039695,-302.63687509,0.0002244,2]
[334202972,1722837039704,-302.63687509,0.0002266,2]
[334202973,1722837039714,-209.8,0.0002282,3]
[334202974,1722837039723,-302.63687509,0.0002288,2]
[334202975,1722837039748,-600.0,0.00023029,2]
[334202976,1722837039771,-453.95531264,0.000231,4]
[334202978,1722837039790,-453.95531264,0.0002332,4]
[334202981,1722837039811,-244.42,0.000234,31]
[334202984,1722837039830,-244.42,0.000234,31]
[334202987,1722837039849,-244.42,0.000234,31]
[334202988,1722837039866,-244.42,0.000234,31]
[334202989,1722837039881,-244.42,0.000234,31]
[334202990,1722837039899,-244.42,0.000234,31]
[334202993,1722837039918,-244.42,0.000234,31]
[334202995,1722837039941,-244.42,0.000234,31]
[334202997,1722837039955,-244.42,0.000234,31]
[334202998,1722837039975,-244.42,0.000234,31]
[334202999,1722837039993,-244.42,0.000234,31]
[334203000,1722837040013,-244.42,0.000234,31]
[334203002,1722837040026,-244.42,0.000234,31]
[334203004,1722837040041,-244.42,0.000234,31]
[334203005,1722837040057,-244.42,0.000234,31]
[334203006,1722837040071,-244.42,0.000234,31]
[334203007,1722837040088,-244.42,0.000234,31]
[334203008,1722837040104,-244.42,0.000234,31]
[334203009,1722837040118,-244.42,0.000234,31]
[334203010,1722837040133,-244.42,0.000234,31]
[334203011,1722837040148,-202.15251698,0.0002354,4]
[334203012,1722837040162,-200.0,0.00024081,2]
[334203013,1722837040178,-600.0,0.00024346,2]
[334203014,1722837040194,-244.42,0.000245,31]
[334203016,1722837040209,-244.42,0.000245,31]
[334203017,1722837040224,-244.42,0.000245,31]
[334203018,1722837040240,-244.42,0.000245,31]
[334203019,1722837040260,-244.42,0.000245,31]
[334203020,1722837040275,-244.42,0.000245,31]
[334203021,1722837040289,-244.42,0.000245,31]
[334203022,1722837040304,-244.42,0.000245,31]
[334203023,1722837040318,-244.42,0.000245,31]
[334203024,1722837040334,-244.42,0.000245,31]
[334203025,1722837040348,-244.42,0.000245,31]
[334203026,1722837040361,-244.42,0.000245,31]
[334203027,1722837040377,-244.42,0.000245,31]
[334203028,1722837040391,-244.42,0.000245,31]
[334203029,1722837040406,-244.42,0.000245,31]
[334203030,1722837040421,-244.42,0.000245,31]
[334203031,1722837040437,-244.42,0.000245,31]
[334203032,1722837040453,-244.42,0.000245,31]
[334203033,1722837040467,-244.42,0.000245,31]
[334203034,1722837040482,-244.42,0.000245,31]
[334203035,1722837040497,-200.0,0.000246,2]
[334203036,1722837040515,-380.0,0.00024658,2]
[334203037,1722837040530,-200.0,0.00024658,15]
[334203038,1722837040544,-151.0,0.00024658,7]
[334203039,1722837040558,-1230.133207,0.00024658,7]
[334203040,1722837040672,-1230.133207,0.00024658,7]
[334203041,1722837040689,-679.058374,0.00024658,7]
[334203042,1722837040698,-679.058374,0.00024658,7]
[334203043,1722837040708,-151.0,0.00024658,7]
[334203044,1722837040717,-556.29568355,0.00024883,2]
[334203045,1722837040726,-151.0,0.0002489,7]
[334203046,1722837040735,-200.092375,0.0002489,7]
[334203047,1722837040745,-200.092375,0.0002489,7]
[334203048,1722837040754,-333.477487,0.0002489,7]
[334203050,1722837040773,-333.477487,0.0002489,7]
[334203051,1722837040783,-151.0,0.0002499,7]
[334203052,1722837040794,-23893.7214294,0.0002499,3]
[334203053,1722837040803,-859.531168,0.0002499,7]
[334203054,1722837040813,-859.531168,0.0002499,7]
[334203056,1722837040823,-151.0,0.0002499,7]
[334203058,1722837040832,-209.8,0.00024998,4]
[334203059,1722837040843,-151.0,0.00024998,4]
[334203060,1722837040853,-363.76476106,0.00025,2]
[334203061,1722837040863,-154.74467129,0.00025,2]
[334203062,1722837040872,-20988.23106521,0.00025,30]
[334203063,1722837040882,-150.0,0.00025499,2]
[334203064,1722837040892,-244.42,0.000255,31]
[334203065,1722837040902,-244.42,0.000255,31]
[334203066,1722837040911,-244.42,0.000255,31]
[334203067,1722837040922,-244.42,0.000255,31]
[334203068,1722837040932,-244.42,0.000255,31]
[334203070,1722837040942,-244.42,0.000255,31]
[334203072,1722837040952,-244.42,0.000255,31]
[334203074,1722837040962,-244.42,0.000255,31]
[334203076,1722837040972,-244.42,0.000255,31]
[334203078,1722837040981,-244.42,0.000255,31]
[334203080,1722837040990,-244.42,0.000255,31]
[334203082,1722837041000,-244.42,0.000255,31]
[334203084,1722837041017,-244.42,0.000255,31]
[334203086,1722837041031,-244.42,0.000255,31]
[334203088,1722837041041,-244.42,0.000255,31]
[334203090,1722837041050,-244.42,0.000255,31]
[334203092,1722837041061,-244.42,0.000255,31]
[334203094,1722837041071,-244.42,0.000255,31]
[334203095,1722837041081,-244.42,0.000255,31]
[334203096,1722837041090,-244.42,0.000255,31]
[334203097,1722837041100,-200.25504166,0.0002597,2]
[334203098,1722837041111,-150.0,0.00026146,2]
[334203099,1722837041122,-484.354,0.00026146,2]
[334203100,1722837041132,-1411.0,0.00026146,2]
[334203101,1722837041141,-211.292857,0.00026388,2]
[334203102,1722837041151,-150.0,0.00026499,2]
[334203103,1722837041161,-150.112233,0.000265,9]
[334203104,1722837041171,-12553.35,0.000265,14]
[334203105,1722837041181,-1104.48,0.000265,14]
[334203106,1722837041190,-579.68,0.000265,7]
[334203107,1722837041200,-151.0,0.000265,7]
[334203108,1722837041210,-182.00734,0.000265,7]
[334203109,1722837041220,-182.00734,0.000265,7]
[334203110,1722837041231,-151.0,0.000265,7]
[334203111,1722837041241,-151.0,0.000265,7]
[334203112,1722837041251,-151.684119,0.000265,7]
[334203113,1722837041261,-448.284641,0.000265,7]
[334203114,1722837041271,-859.531168,0.000265,7]
[334203115,1722837041281,-859.531168,0.000265,7]
[334203116,1722837041290,-772.25823972,0.00026575,2]
[334203117,1722837041300,-328.488265,0.00026599,7]
[334203118,1722837041311,-328.488265,0.00026599,7]
[334203119,1722837041321,-1691.89437031,0.00026599,2]
[334203120,1722837041331,-310.0,0.000266,30]
[334203121,1722837041341,-447.862561,0.000266,30]
[334203122,1722837041351,-244.42,0.000266,31]
[334203123,1722837041360,-244.42,0.000266,31]
[334203124,1722837041370,-244.42,0.000266,31]
[334203125,1722837041379,-244.42,0.000266,31]
[334203126,1722837041390,-244.42,0.000266,31]
[334203127,1722837041399,-244.42,0.000266,31]
[334203128,1722837041409,-244.42,0.000266,31]
[334203129,1722837041420,-244.42,0.000266,31]
[334203130,1722837041430,-244.42,0.000266,31]
[334203131,1722837041445,-244.42,0.000266,31]
[334203132,1722837041455,-244.42,0.000266,31]
[334203133,1722837041464,-244.42,0.000266,31]
[334203134,1722837041473,-244.42,0.000266,31]
[334203135,1722837041483,-244.42,0.000266,31]
[334203136,1722837041493,-244.42,0.000266,31]
[334203137,1722837041502,-244.42,0.000266,31]
[334203138,1722837041512,-244.42,0.000266,31]
[334203139,1722837041522,-244.42,0.000266,31]
[334203140,1722837041532,-244.42,0.000266,31]
[334203141,1722837041541,-244.42,0.000266,31]
[334203142,1722837041551,-154.79103211,0.00026604,2]
[334203143,1722837041560,-154.79103211,0.00026604,2]
[334203144,1722837041570,-151.0,0.00026649,7]
[334203145,1722837041580,-261.862286,0.00026649,7]
[334203146,1722837041590,-261.862286,0.00026649,7]
[334203147,1722837041600,-800.0,0.00026687,2]
[334203148,1722837041610,-151.83333,0.0002688,7]
[334203149,1722837041620,-1230.133207,0.0002688,7]
[334203150,1722837041629,-1230.133207,0.0002688,7]
[334203151,1722837041640,-679.058374,0.0002688,7]
[334203152,1722837041650,-679.058374,0.0002688,7]
[334203153,1722837041659,-151.0,0.0002688,7]
[334203154,1722837041669,-151.0,0.0002689,7]
[334203155,1722837041679,-157.048486,0.0002689,2]
[334203156,1722837041689,-151.0,0.0002689,7]
[334203157,1722837041699,-151.0,0.0002689,7]
[334203158,1722837041708,-212.884263,0.0002689,7]
[334203159,1722837041719,-151.276711,0.0002689,7]
[334203160,1722837041729,-151.0,0.0002689,7]
[334203161,1722837041739,-151.0,0.0002689,7]
[334203162,1722837041749,-269.367342,0.0002689,7]
[334203163,1722837041758,-151.0,0.0002689,7]
[334203164,1722837041771,-200.092375,0.0002689,7]
[334203165,1722837041781,-200.092375,0.0002689,7]
[334203166,1722837041791,-333.477487,0.0002689,7]
[334203167,1722837041800,-333.477487,0.0002689,7]
[334203168,1722837041810,-88477.87601444,0.000269,5]
[334203169,1722837041820,-96348.76533195,0.000269,7]
[334203170,1722837042145,-3401.06619762,0.000269,7]
[334203171,1722837042158,-908.95806516,0.000269,7]
[334203172,1722837042170,-4598.2762932,0.000269,7]
[334203173,1722837042452,-320.70777359,0.00021048,2]
[334203174,1722837042461,-290.41326156,0.00021542,2]
[334203175,1722837042470,-20835.7969599,0.000269,7]
[334203176,1722837042480,-912.4763458,0.000269,2]
[334203177,1722837042490,-154.74467129,0.000269,15]
[334203178,1722837042499,-1625.81763535,0.000269,2]
[334203180,1722837042509,-8024.99664677,0.000269,2]
[334203182,1722837042518,-13234.84134782,0.000269,2]
[334203184,1722837042528,-155.59865243,0.000269,2]
[334203185,1722837042538,-151.0,0.000269,7]
[334203186,1722837042547,-154.77557542,0.000269,2]
[334203187,1722837042557,-154.77557542,0.000269,2]
[334203188,1722837042572,-220.67854838,0.000269,2]
[334203189,1722837042582,-9678.40661042,0.000269,2]
[334203190,1722837042591,-189.82749556,0.000269,7]
[334203191,1722837042600,-151.0,0.000269,7]
[334203192,1722837042610,-151.0,0.000269,7]
[334203193,1722837042619,-151.0,0.000269,7]
[334203194,1722837042629,-2255.71315981,0.000269,2]
[334203195,1722837042638,-1669.01055043,0.000269,2]
[334203196,1722837042647,-151.0,0.000269,7]
[334203197,1722837042657,-151.0,0.000269,7]
[334203198,1722837042666,-151.0,0.000269,7]
[334203199,1722837042675,-151.0,0.000269,7]
[334203200,1722837042685,-151.0,0.000269,7]
[334203201,1722837042694,-151.0,0.000269,7]
[334203202,1722837042703,-200.092375,0.000269,7]
[334203203,1722837042713,-200.092375,0.000269,7]
[334203204,1722837042723,-333.477487,0.000269,7]
[334203205,1722837042733,-333.477487,0.000269,7]
[334203206,1722837042742,-151.0,0.000269,7]
[334203207,1722837042756,-261.862286,0.000269,7]
[334203208,1722837042765,-261.862286,0.000269,7]
[334203209,1722837042775,-151.0,0.000269,7]
[334203210,1722837042784,-182.00734,0.000269,7]
[334203211,1722837042795,-182.00734,0.000269,7]
[334203212,1722837042804,-151.0,0.000269,7]
[334203213,1722837042814,-151.0,0.000269,7]
[334203214,1722837042823,-448.284641,0.000269,7]
[334203215,1722837042832,-1230.133207,0.000269,7]
[334203216,1722837042844,-1230.133207,0.000269,7]
[334203217,1722837042853,-151.62149724,0.000269,7]
[334203218,1722837042865,-527.43687676,0.000269,7]
[334203219,1722837042876,-361.56414226,0.000269,7]
[334203270,1722837046348,-273.37336231,9.9e-05,2]
[334203271,1722837046357,-5026.62663769,0.00019167,2]
[334203284,1722837082548,578.79546775,0.00023232,60]
[334203295,1722837409531,4077.04377669,0.00025,60]
[334203301,1722837733325,3000.0,9.011e-05,2]
[334203306,1722837840640,158.48348286,9.011e-05,2]
[334203307,1722837870723,158.48348286,9.011e-05,2]
[334203311,1722837989673,158.48348286,9.011e-05,2]
[334203313,1722838089640,158.48348286,9.011e-05,2]
[334203314,1722838104620,158.48348286,9.011e-05,2]
[334203331,1722838228634,158.48348286,9.011e-05,2]
[334203386,1722838234770,-191.64220898,9.603e-05,2]
[334203388,1722838234779,-979.07965287,9.603e-05,2]
[334203390,1722838234789,-273.37336231,9.606e-05,2]
[334203392,1722838234799,-300.0,9.998e-05,2]
[334203393,1722838234808,-300.0,9.998e-05,2]
[334203395,1722838234818,-290.41326156,9.999e-05,2]
[334203397,1722838234827,-417.47527685,9.999e-05,2]
[334203398,1722838234836,-155.21101905,9.999e-05,2]
[334203399,1722838234845,-205.28735846,9.999e-05,2]
[334203400,1722838234855,-470.88148729,9.999e-05,2]
[334203401,1722838234865,-515.71888501,9.999e-05,2]
[334203402,1722838234881,-356.48865902,9.999e-05,2]
[334203403,1722838234890,-154.89219184,9.999e-05,2]
[334203404,1722838234900,-667.53663676,9.999e-05,2]
[334203406,1722838234915,-175.83070255,9.999e-05,2]
[334203408,1722838234926,-942.68890731,9.999e-05,2]
[334203411,1722838234935,-523.10973974,9.999e-05,2]
[334203414,1722838234945,-163.08091826,9.999e-05,2]
[334203416,1722838234954,-519.59956575,9.999e-05,2]
[334203418,1722838234963,-212.78917601,9.999e-05,2]
[334203421,1722838234972,-63.40099038,9.999e-05,2]
[334203423,1722838234983,-181.44458836,9.999e-05,2]
[334203425,1722838234993,-83.55541164,9.999e-05,2]
[334203441,1722838239760,-71.29846386,9.999e-05,2]
[334203442,1722838239770,-309.48934258,9.999e-05,2]
[334203443,1722838239780,-309.52025597,9.999e-05,2]
[334203444,1722838239789,-494.69205879,9.999e-05,2]
[334203445,1722838239798,-155.21293793,9.999e-05,2]
[334203446,1722838239808,-201.4758121,9.999e-05,2]
[334203447,1722838239818,-156.8188046,0.00010922,2]
[334203450,1722838239828,-779.56253199,0.00010922,2]
[334203452,1722838239839,-600.8534117,0.00010922,2]
[334203455,1722838239850,-342.07838654,0.00010922,2]
[334203458,1722838239861,-269.69558364,0.00013,2]
[334203461,1722838239872,-24900.0,0.00013579,2]
[334203464,1722838239893,-1962.42104598,0.00013599,2]
[334203467,1722838239904,-423.535423,0.00013699,2]
[334203470,1722838239915,-194.58009581,0.00013699,2]
[334203472,1722838239925,-218.23065649,0.00013699,2]
[334203474,1722838239935,-1091.69139402,0.00014,2]
[334203476,1722838239946,-267.518862,0.00014247,2]
[334203478,1722838239956,-309.45844772,0.00015,2]
[334203482,1722838239967,-951.80625463,0.00015,2]
[334203484,1722838239977,-2848.79958348,0.00015,2]
[334203486,1722838239987,-7062.67866999,0.00015707,2]
[334203488,1722838239997,-3878.93426889,0.00015707,2]
[334203490,1722838240007,-42341.71391136,0.00016095,2]
[334203492,1722838240016,-2790.3473186,0.00017291,2]
[334203494,1722838240026,-200.0,0.00017808,2]
[334203497,1722838240035,-187.4,0.00018599,2]
[334203499,1722838240044,-1962.42104594,0.00018625,2]
[334203501,1722838240054,-9642.56191171,0.00018657,2]
[334203503,1722838240063,-1382.92970052,0.00018701,2]
[334203505,1722838240073,-154.62,0.00018966,3]
[334203507,1722838240083,-426.99038561,0.00018969,2]
[334203509,1722838240093,-165.54898858,0.00018979,2]
[334203512,1722838240103,-165.54898858,0.00018989,2]
[334203514,1722838240112,-150.112233,0.00019,2]
[334203516,1722838240131,-250.0,0.00019041,2]
[334203518,1722838240141,-1162.86940617,0.00019155,2]
[334203520,1722838240153,-1794.59755427,0.00019155,2]
[334203522,1722838240163,-1438.29474334,0.00019167,2]
[334203524,1722838240174,-1715.68394884,0.00019167,2]
[334203526,1722838240185,-3087.63872233,0.00019167,2]
[334203528,1722838240195,-35012.4181319,0.00019177,2]
[334203530,1722838240204,-2278.204521,0.00019177,3]
[334203532,1722838240214,-211.292858,0.00019178,2]
[334203534,1722838240223,-190.163571,0.00019178,2]
[334203536,1722838240234,-336.1881449,0.00019256,2]
[334203538,1722838240244,-892.05411216,0.00019256,2]
[334203540,1722838240254,-296.95255386,0.00019256,2]
[334203542,1722838240264,-287.79610663,0.00019256,2]
[334203544,1722838240273,-691.9958304,0.00019256,2]
[334203545,1722838240282,-2139.16821494,0.00019256,2]
[334203547,1722838240292,-297.50797745,0.00019378,2]
[334203549,1722838240302,-1075.37290151,0.00019447,2]
[334203551,1722838240312,-500.0,0.0001945,2]
[334203553,1722838240322,-500.0,0.0001945,2]
[334203555,1722838240331,-500.0,0.0001945,2]
[334203557,1722838240340,-500.0,0.0001945,2]
[334203559,1722838240350,-500.0,0.0001945,2]
[334203561,1722838240360,-500.0,0.0001945,2]
[334203564,1722838240370,-2124.51614001,0.00019451,2]
[334203565,1722838240386,-20759.5327798,0.00019451,2]
[334203567,1722838240396,-240.82219567,0.00019451,2]
[334203569,1722838240405,-2124.51614001,0.00019451,2]
[334203571,1722838240415,-209.20156569,0.00019451,2]
[334203573,1722838240424,-2162.60520141,0.00019451,2]
[334203575,1722838240435,-20759.5327798,0.00019451,2]
[334203577,1722838240445,-845.54644341,0.00019451,2]
[334203579,1722838240455,-22738.8403901,0.00019468,2]
[334203581,1722838240467,-188.24924053,0.00019477,2]
[334203583,1722838240476,-1500.0,0.00019477,2]
[334203585,1722838240485,-1500.0,0.00019477,2]
[334203586,1722838240495,-154.80649189,0.00019477,2]
[334203587,1722838240505,-1610.68802731,0.00019477,2]
[334203589,1722838240514,-22738.8403901,0.00019537,2]
[334203590,1722838240524,-174.54270234,0.00019547,2]
[334203592,1722838240533,-156.74439841,0.00019999,2]
[334203594,1722838240542,-205.20449904,0.00019999,2]
[334203596,1722838240551,-196.48473354,0.00019999,2]
[334203598,1722838240561,-154.79103211,0.0002,2]
[334203600,1722838240570,-156.35315554,0.0002,2]
[334203601,1722838240579,-1632.70804043,0.0002,2]
[334203603,1722838240590,-154.82195475,0.0002,2]
[334203605,1722838240600,-1363.34392567,0.0002,2]
[334203607,1722838240609,-294.09032939,0.0002,2]
[334203609,1722838240618,-1061.01164336,0.0002,2]
[334203611,1722838240635,-320.70777359,0.0002028,2]
[334203613,1722838240644,-423.535423,0.00020548,2]
[334203614,1722838240653,-267.518862,0.00020707,2]
[334203615,1722838240662,-297.50797742,0.00020759,2]
[334203616,1722838240671,-187.4,0.00020765,2]
[334203617,1722838240681,-150.112233,0.00021,5]
[334203618,1722838240691,-150.0,0.00021,2]
[334203619,1722838240700,-254.97505895,0.00021532,2]
[334203620,1722838240709,-174.34056682,0.00021589,2]
[334203621,1722838240718,-999.47999369,0.00021595,2]
[334203622,1722838240727,-154.80649189,0.00021599,2]
[334203623,1722838240736,-154.79876161,0.00021805,2]
[334203624,1722838240745,-154.80649189,0.00021805,2]
[334203625,1722838240755,-302.69733596,0.00022,2]
[334203626,1722838240764,-302.63687509,0.00022,2]
[334203627,1722838240773,-297.50797742,0.00022139,2]
[334203628,1722838240782,-302.69733596,0.0002222,2]
[334203629,1722838240792,-302.63687509,0.0002222,2]
[334203630,1722838240801,-22738.8403901,0.0002239,3]
[334203631,1722838240810,-1691.89437031,0.000224,2]
[334203632,1722838240819,-1691.89437031,0.000224,2]
[334203633,1722838240829,-385.6,0.000224,31]
[334203634,1722838240838,-385.6,0.000224,31]
[334203635,1722838240847,-385.6,0.000224,31]
[334203636,1722838240857,-385.6,0.000224,31]
[334203637,1722838240938,-385.6,0.000224,31]
[334203638,1722838240948,-385.6,0.000224,31]
[334203639,1722838240959,-385.6,0.000224,31]
[334203640,1722838240969,-385.6,0.000224,31]
[334203641,1722838240979,-385.6,0.000224,31]
[334203642,1722838240989,-385.6,0.000224,31]
[334203643,1722838240998,-385.6,0.000224,31]
[334203644,1722838241008,-385.6,0.000224,31]
[334203645,1722838241017,-385.6,0.000224,31]
[334203646,1722838241027,-385.6,0.000224,31]
[334203647,1722838241036,-385.6,0.000224,31]
[334203648,1722838241045,-385.6,0.000224,31]
[334203649,1722838241056,-385.6,0.000224,31]
[334203650,1722838241065,-385.6,0.000224,31]
[334203651,1722838241074,-385.6,0.000224,31]
[334203652,1722838241083,-385.6,0.000224,31]
[334203653,1722838241093,-302.69733596,0.0002244,2]
[334203654,1722838241102,-302.63687509,0.0002244,2]
[334203655,1722838241113,-302.69733596,0.0002266,2]
[334203656,1722838241127,-302.63687509,0.0002266,2]
[334203657,1722838241136,-160.54991199,0.00022737,2]
[334203658,1722838241147,-160.54991199,0.00022737,2]
[334203659,1722838241156,-302.69733596,0.0002288,2]
[334203660,1722838241166,-302.63687509,0.0002288,2]
[334203661,1722838241175,-187.4,0.00022931,3]
[334203662,1722838241185,-151.0,0.00022931,3]
[334203663,1722838241194,-200.0,0.00023,2]
[334203664,1722838241203,-454.04600394,0.000231,4]
[334203665,1722838241213,-375.49450724,0.000231,4]
[334203666,1722838241223,-150.112233,0.000232,2]
[334203667,1722838241233,-151.0,0.00023232,7]
[334203668,1722838241242,-151.0,0.00023232,7]
[334203669,1722838241252,-994.04,0.000233,14]
[334203670,1722838241261,-454.04600394,0.0002332,4]
[334203671,1722838241271,-385.6,0.000234,31]
[334203672,1722838241281,-385.6,0.000234,31]
[334203673,1722838241291,-385.6,0.000234,31]
[334203674,1722838241300,-385.6,0.000234,31]
[334203675,1722838241310,-385.6,0.000234,31]
[334203676,1722838241320,-385.6,0.000234,31]
[334203677,1722838241330,-385.6,0.000234,31]
[334203678,1722838241340,-385.6,0.000234,31]
[334203679,1722838241349,-385.6,0.000234,31]
[334203680,1722838241359,-385.6,0.000234,31]
[334203681,1722838241368,-385.6,0.000234,31]
[334203682,1722838241382,-385.6,0.000234,31]
[334203683,1722838241392,-385.6,0.000234,31]
[334203684,1722838241401,-385.6,0.000234,31]
[334203685,1722838241410,-385.6,0.000234,31]
[334203686,1722838241420,-385.6,0.000234,31]
[334203687,1722838241430,-385.6,0.000234,31]
[334203688,1722838241440,-385.6,0.000234,31]
[334203689,1722838241451,-385.6,0.000234,31]
[334203690,1722838241462,-385.6,0.000234,31]
[334203691,1722838241471,-297.50797742,0.0002352,2]
[334203692,1722838241481,-454.04600394,0.0002354,4]
[334203693,1722838241490,-454.04600394,0.0002376,4]
[334203694,1722838241500,-454.04600394,0.0002398,4]
[334203695,1722838241510,-200.0,0.00024081,2]
[334203696,1722838241520,-12176.2687964,0.000244,3]
[334203697,1722838241529,-385.6,0.000245,31]
[334203698,1722838241539,-385.6,0.000245,31]
[334203699,1722838241548,-385.6,0.000245,31]
[334203700,1722838241558,-385.6,0.000245,31]
[334203701,1722838241568,-385.6,0.000245,31]
[334203702,1722838241578,-385.6,0.000245,31]